fUST/lending_fUST_20250526
["ID","MTS","AMOUNT","RATE_DAILY","PERIOD"]
[362391347,1748245853710,-430.0,0.00020273,2]
[362391349,1748245853719,-430.0,0.00020273,2]
[362391351,1748245853728,-430.0,0.00020273,2]
[362391353,1748245853738,-430.0,0.00020273,2]
[362391355,1748245853748,-430.0,0.00020273,2]
[362391357,1748245853757,-430.0,0.00020273,2]
[362391359,1748245853767,-430.0,0.00020273,2]
[362391361,1748245853777,-430.0,0.00020273,2]
[362391363,1748245853788,-430.0,0.00020273,2]
[362391365,1748245853797,-430.0,0.00020273,2]
[362391366,1748245853807,-430.0,0.00020273,2]
[362391368,1748245853817,-444.29,0.00020273,2]
[362391370,1748245853829,-430.0,0.00020273,2]
[362391372,1748245853839,-500.0,0.00020273,2]
[362391374,1748245853849,-430.0,0.00020273,2]
[362391376,1748245853859,-430.0,0.00020273,2]
[362391378,1748245853869,-430.0,0.00020273,2]
[362391380,1748245853879,-472.4,0.00020273,2]
[362391382,1748245853888,-430.0,0.00020273,2]
[362391384,1748245853900,-374.13949231,0.00020273,2]
[362391386,1748245853909,-430.0,0.00020273,2]
[362391388,1748245853919,-430.0,0.00020273,2]
[362391390,1748245853929,-430.0,0.00020273,2]
[362391392,1748245853938,-430.0,0.00020273,2]
[362391394,1748245853949,-430.0,0.00020273,2]
[362391396,1748245853959,-430.0,0.00020273,2]
[362391398,1748245853968,-430.0,0.00020273,2]
[362391400,1748245853978,-430.0,0.00020273,2]
[362391402,1748245853988,-430.0,0.00020273,2]
[362391403,1748245853998,-430.0,0.00020273,2]
[362391405,1748245854008,-430.13,0.00020273,2]
[362391407,1748245854018,-699.59,0.00020273,2]
[362391409,1748245854028,-483.6,0.00020273,2]
[362391423,1748245854153,-430.0,0.00020273,2]
[362391425,1748245854162,-226.42688992,0.00020273,2]
[362391427,1748245854172,-430.0,0.00020273,2]
[362391429,1748245854183,-2830.25,0.00020273,2]
[362391431,1748245854192,-430.0,0.00020273,2]
[362391433,1748245854202,-430.0,0.00020273,2]
[362391435,1748245854211,-430.0,0.00020273,2]
[362391437,1748245854221,-430.0,0.00020273,2]
[362391439,1748245854231,-444.44,0.00020273,2]
[362391441,1748245854241,-430.0,0.00020273,2]
[362391443,1748245854250,-430.0,0.00020273,2]
[362391445,1748245854260,-430.0,0.00020273,2]
[362391447,1748245854273,-432.14,0.00020273,2]
[362391449,1748245854283,-430.0,0.00020273,2]
[362391451,1748245854293,-709.96,0.00020273,2]
[362391453,1748245854303,-430.0,0.00020273,2]
[362391455,1748245854313,-430.0,0.00020273,2]
[362391457,1748245854323,-430.0,0.00020273,2]
[362391459,1748245854332,-430.0,0.00020273,2]
[362391461,1748245854342,-430.0,0.00020273,2]
[362391462,1748245854351,-430.0,0.00020273,2]
[362391464,1748245854361,-430.0,0.00020273,2]
[362391465,1748245854371,-373.54459368,0.00020273,2]
[362391466,1748245854380,-627.56,0.00020273,2]
[362391467,1748245854390,-1010.74,0.00020273,2]
[362391468,1748245854399,-430.0,0.00020273,2]
[362391469,1748245854409,-430.0,0.00020273,2]
[362391470,1748245854419,-460.04408824,0.00020273,2]
[362391471,1748245854428,-430.0,0.00020273,2]
[362391472,1748245854438,-430.0,0.00020273,2]
[362391473,1748245854447,-1887.09,0.00020273,2]
[362391474,1748245854456,-1569.9,0.00020273,2]
[362391475,1748245854466,-430.0,0.00020273,2]
[362391476,1748245854475,-430.0,0.00020273,2]
[362391477,1748245854486,-430.0,0.00020273,2]
[362391478,1748245854495,-430.0,0.00020273,2]
[362391479,1748245854505,-1924.19,0.00020273,2]
[362391480,1748245854515,-430.0,0.00020273,2]
[362391481,1748245854525,-430.0,0.00020273,2]
[362391482,1748245854536,-430.0,0.00020273,2]
[362391483,1748245854546,-3057.21,0.00020273,2]
[362391484,1748245854556,-430.0,0.00020273,2]
[362391485,1748245854566,-518.54,0.00020273,2]
[362391486,1748245854576,-588.02,0.00020273,2]
[362391487,1748245854586,-430.0,0.00020273,2]
[362391488,1748245854595,-430.0,0.00020273,2]
[362391490,1748245854605,-468.75,0.00020273,2]
[362391492,1748245854615,-430.0,0.00020273,2]
[362391494,1748245854624,-430.0,0.00020273,2]
[362391496,1748245854635,-430.0,0.00020273,2]
[362391498,1748245854645,-430.0,0.00020273,2]
[362391500,1748245854654,-430.0,0.00020273,2]
[362391502,1748245854664,-1257.45,0.00020273,2]
[362391504,1748245854674,-430.0,0.00020273,2]
[362391506,1748245854684,-430.0,0.00020273,2]
[362391508,1748245854693,-1149.24,0.00020273,2]
[362391510,1748245854703,-482.43958677,0.00020273,2]
[362391512,1748245854714,-173.05497965,0.00020273,2]
[362391515,1748245854724,-443.96017812,0.00020273,2]
[362391516,1748245854733,-430.0,0.00020273,2]
[362391518,1748245854743,-430.0,0.00020273,2]
[362391520,1748245854753,-430.0,0.00020273,2]
[362391522,1748245854763,-466.21330576,0.00020273,2]
[362391524,1748245854773,-430.0,0.00020273,2]
[362391527,1748245854783,-430.0,0.00020273,2]
[362391528,1748245854793,-430.0,0.00020273,2]
[362391530,1748245854803,-430.0,0.00020273,2]
[362391533,1748245854814,-651.02,0.00020273,2]
[362391535,1748245854828,-4169.53677956,0.0002035,2]
[362391537,1748245854837,-11328.85266884,0.00020456,2]
[362391539,1748245854847,-1112.61514983,0.00020486,3]
[362391541,1748245854856,-724.41881301,0.00020521,2]
[362391542,1748245854866,-1000.0,0.00020521,2]
[362391544,1748245854875,-1003.98607318,0.00020521,2]
[362391546,1748245854884,-1000.0,0.00020521,2]
[362391548,1748245854894,-573.09247553,0.00020521,2]
[362391550,1748245854904,-614.85627674,0.00020521,2]
[362391552,1748245854913,-1000.0,0.00020521,2]
[362391554,1748245854923,-1029.68827081,0.00020521,2]
[362391556,1748245854932,-1004.98429276,0.00020521,2]
[362391558,1748245854942,-1000.0,0.00020521,2]
[362391560,1748245854951,-1000.0,0.00020521,2]
[362391562,1748245854962,-507.93830376,0.00020521,2]
[362391564,1748245854972,-1000.0,0.00020521,2]
[362391566,1748245854982,-2000.0,0.00020521,2]
[362391568,1748245854991,-1026.70158447,0.00020521,2]
[362391570,1748245855001,-1200.0,0.00020521,2]
[362391572,1748245855011,-1000.0,0.00020521,2]
[362391574,1748245855021,-500.0,0.00020521,2]
[362391577,1748245855031,-500.0,0.00020531,2]
[362391579,1748245855040,-430.0,0.00020547,2]
[362391581,1748245855050,-430.0,0.00020547,2]
[362391582,1748245855060,-430.0,0.00020547,2]
[362391585,1748245855070,-430.0,0.00020547,2]
[362391586,1748245855079,-430.0,0.00020547,2]
[362391588,1748245855088,-430.0,0.00020547,2]
[362391590,1748245855098,-430.0,0.00020547,2]
[362391592,1748245855107,-430.0,0.00020547,2]
[362391594,1748245855118,-507.72,0.00020547,2]
[362391596,1748245855127,-430.0,0.00020547,2]
[362391598,1748245855137,-430.0,0.00020547,2]
[362391600,1748245855146,-444.92835629,0.00020547,2]
[362391602,1748245855156,-430.0,0.00020547,2]
[362391604,1748245855166,-430.0,0.00020547,2]
[362391606,1748245855176,-430.0,0.00020547,2]
[362391609,1748245855186,-430.0,0.00020547,2]
[362391611,1748245855195,-443.0,0.00020547,2]
[362391613,1748245855205,-430.0,0.00020547,2]
[362391615,1748245855215,-444.29,0.00020547,2]
[362391617,1748245855224,-430.0,0.00020547,2]
[362391619,1748245855234,-508.47269799,0.00020547,2]
[362391621,1748245855243,-430.0,0.00020547,2]
[362391622,1748245855253,-430.0,0.00020547,2]
[362391625,1748245855263,-472.4,0.00020547,2]
[362391627,1748245855273,-430.0,0.00020547,2]
[362391629,1748245855282,-430.0,0.00020547,2]
[362391631,1748245855292,-430.0,0.00020547,2]
[362391633,1748245855302,-430.0,0.00020547,2]
[362391635,1748245855312,-430.0,0.00020547,2]
[362391637,1748245855322,-430.0,0.00020547,2]
[362391639,1748245855332,-191.65472452,0.00020547,2]
[362391640,1748245855342,-430.0,0.00020547,2]
[362391643,1748245855352,-476.5,0.00020547,2]
[362391645,1748245855363,-430.13,0.00020547,2]
[362391646,1748245855372,-699.59,0.00020547,2]
[362391648,1748245855382,-430.0,0.00020547,2]
[362391651,1748245855391,-2830.25,0.00020547,2]
[362391653,1748245855401,-430.0,0.00020547,2]
[362391655,1748245855411,-430.0,0.00020547,2]
[362391656,1748245855421,-430.0,0.00020547,2]
[362391659,1748245855430,-430.0,0.00020547,2]
[362391661,1748245855440,-444.44,0.00020547,2]
[362391663,1748245855450,-430.0,0.00020547,2]
[362391665,1748245855460,-430.0,0.00020547,2]
[362391667,1748245855469,-432.14,0.00020547,2]
[362391669,1748245855479,-430.0,0.00020547,2]
[362391670,1748245855488,-709.96,0.00020547,2]
[362391672,1748245855498,-430.0,0.00020547,2]
[362391675,1748245855508,-430.0,0.00020547,2]
[362391676,1748245855518,-430.0,0.00020547,2]
[362391679,1748245855529,-430.0,0.00020547,2]
[362391681,1748245855538,-627.56,0.00020547,2]
[362391683,1748245855548,-1010.74,0.00020547,2]
[362391685,1748245855558,-430.0,0.00020547,2]
[362391687,1748245855569,-430.0,0.00020547,2]
[362391688,1748245855579,-430.0,0.00020547,2]
[362391690,1748245855588,-1887.09,0.00020547,2]
[362391692,1748245855597,-1569.9,0.00020547,2]
[362391694,1748245855607,-430.0,0.00020547,2]
[362391696,1748245855617,-430.0,0.00020547,2]
[362391698,1748245855628,-469.67,0.00020547,2]
[362391700,1748245855638,-1924.19,0.00020547,2]
[362391702,1748245855648,-430.0,0.00020547,2]
[362391704,1748245855657,-291.62856782,0.00020547,2]
[362391706,1748245855667,-3057.21,0.00020547,2]
[362391708,1748245855676,-518.54,0.00020547,2]
[362391710,1748245855687,-588.02,0.00020547,2]
[362391712,1748245855696,-430.0,0.00020547,2]
[362391714,1748245855706,-430.0,0.00020547,2]
[362391716,1748245855715,-468.75,0.00020547,2]
[362391718,1748245855724,-430.0,0.00020547,2]
[362391720,1748245855735,-430.0,0.00020547,2]
[362391723,1748245855745,-430.0,0.00020547,2]
[362391725,1748245855755,-196.95,0.00020547,2]
[362391726,1748245855764,-1257.45,0.00020547,2]
[362391729,1748245855775,-430.0,0.00020547,2]
[362391731,1748245855785,-1149.24,0.00020547,2]
[362391733,1748245855794,-430.0,0.00020547,2]
[362391743,1748245855804,-546.89,0.00020547,2]
[362391746,1748245855911,-430.0,0.00020547,2]
[362391748,1748245855921,-361.92,0.00020547,2]
[362391750,1748245855931,-430.0,0.00020547,2]
[362391752,1748245855941,-430.0,0.00020547,2]
[362391754,1748245855951,-651.02,0.00020547,2]
[362391756,1748245855961,-1005.16616232,0.0002057,2]
[362391758,1748245855972,-271.54581818,0.0002057,2]
[362391760,1748245855982,-507.57693645,0.0002057,2]
[362391762,1748245855993,-1500.0,0.0002057,2]
[362391764,1748245856003,-5000.0,0.00020578,2]
[362391766,1748245856012,-4000.0,0.00020636,2]
[362391768,1748245856022,-517.0,0.0002066,2]
[362391770,1748245856032,-5000.0,0.0002068,2]
[362391772,1748245856042,-5000.0,0.0002068,7]
[362391774,1748245856052,-1112.61514983,0.00020762,3]
[362391776,1748245856063,-5000.0,0.0002079,2]
[362391778,1748245856074,-5000.0,0.0002079,7]
[362391780,1748245856083,-894.64583333,0.0002079,7]
[362391782,1748245856093,-212.59253735,0.0002079,7]
[362391784,1748245856102,-430.0,0.00020821,2]
[362391786,1748245856112,-430.0,0.00020821,2]
[362391788,1748245856122,-430.0,0.00020821,2]
[362391790,1748245856131,-430.0,0.00020821,2]
[362391792,1748245856140,-430.0,0.00020821,2]
[362391794,1748245856150,-430.0,0.00020821,2]
[362391796,1748245856159,-430.0,0.00020821,2]
[362391798,1748245856169,-507.72,0.00020821,2]
[362391800,1748245856179,-430.0,0.00020821,2]
[362391802,1748245856188,-430.0,0.00020821,2]
[362391804,1748245856198,-430.0,0.00020821,2]
[362391807,1748245856208,-430.0,0.00020821,2]
[362391809,1748245856217,-430.0,0.00020821,2]
[362391811,1748245856227,-430.0,0.00020821,2]
[362391813,1748245856236,-444.29,0.00020821,2]
[362391815,1748245856246,-430.0,0.00020821,2]
[362391817,1748245856256,-430.0,0.00020821,2]
[362391819,1748245856266,-430.0,0.00020821,2]
[362391821,1748245856276,-472.4,0.00020821,2]
[362391823,1748245856286,-430.0,0.00020821,2]
[362391825,1748245856295,-356.45,0.00020821,2]
[362391827,1748245856305,-430.0,0.00020821,2]
[362391829,1748245856315,-430.0,0.00020821,2]
[362391831,1748245856324,-430.0,0.00020821,2]
[362391833,1748245856334,-430.0,0.00020821,2]
[362391835,1748245856344,-430.0,0.00020821,2]
[362391837,1748245856353,-430.13,0.00020821,2]
[362391839,1748245856363,-699.59,0.00020821,2]
[362391841,1748245856372,-2830.25,0.00020821,2]
[362391843,1748245856382,-430.0,0.00020821,2]
[362391845,1748245856391,-430.0,0.00020821,2]
[362391847,1748245856401,-444.44,0.00020821,2]
[362391849,1748245856411,-430.0,0.00020821,2]
[362391851,1748245856420,-430.0,0.00020821,2]
[362391853,1748245856429,-432.14,0.00020821,2]
[362391855,1748245856439,-430.0,0.00020821,2]
[362391857,1748245856449,-709.96,0.00020821,2]
[362391859,1748245856458,-430.0,0.00020821,2]
[362391861,1748245856468,-430.0,0.00020821,2]
[362391863,1748245856479,-430.0,0.00020821,2]
[362391865,1748245856488,-627.56,0.00020821,2]
[362391867,1748245856498,-1010.74,0.00020821,2]
[362391869,1748245856508,-430.0,0.00020821,2]
[362391871,1748245856518,-430.0,0.00020821,2]
[362391873,1748245856528,-1887.09,0.00020821,2]
[362391875,1748245856540,-1569.9,0.00020821,2]
[362391877,1748245856549,-430.0,0.00020821,2]
[362391879,1748245856559,-430.0,0.00020821,2]
[362391881,1748245856569,-1924.19,0.00020821,2]
[362391883,1748245856579,-273.1,0.00020821,2]
[362391885,1748245856588,-3057.21,0.00020821,2]
[362391887,1748245856598,-518.54,0.00020821,2]
[362391889,1748245856608,-588.02,0.00020821,2]
[362391891,1748245856618,-430.0,0.00020821,2]
[362391893,1748245856627,-430.0,0.00020821,2]
[362391895,1748245856637,-468.75,0.00020821,2]
[362391897,1748245856647,-430.0,0.00020821,2]
[362391899,1748245856656,-430.0,0.00020821,2]
[362391901,1748245856666,-430.0,0.00020821,2]
[362391903,1748245856676,-1257.45,0.00020821,2]
[362391905,1748245856686,-450.0,0.00020821,2]
[362391907,1748245856695,-1149.24,0.00020821,2]
[362391909,1748245856705,-430.0,0.00020821,2]
[362391911,1748245856715,-430.0,0.00020821,2]
[362391913,1748245856724,-430.0,0.00020821,2]
[362391915,1748245856734,-215.0738,0.00020851,2]
[362391917,1748245856744,-5000.0,0.000209,2]
[362391919,1748245856753,-5000.0,0.000209,7]
[362391921,1748245856763,-1000.0,0.00020958,2]
[362391923,1748245856772,-1000.0,0.00020958,2]
[362391925,1748245856782,-1000.0,0.00020958,2]
[362391927,1748245856791,-1000.0,0.00020958,2]
[362391929,1748245856800,-1000.0,0.00020958,2]
[362391931,1748245856810,-1000.0,0.00020958,2]
[362391933,1748245856823,-1000.0,0.00020958,2]
[362391935,1748245856834,-1000.0,0.00020958,2]
[362391937,1748245856844,-1000.0,0.00020958,2]
[362391938,1748245856853,-1000.0,0.00020958,2]
[362391939,1748245856863,-1000.0,0.00020958,2]
[362391940,1748245856872,-1000.0,0.00020958,2]
[362391941,1748245856882,-1000.0,0.00020958,2]
[362391942,1748245856891,-1000.0,0.00020958,2]
[362391943,1748245856901,-1000.0,0.00020958,2]
[362391944,1748245856910,-1000.0,0.00020958,2]
[362391946,1748245856920,-1000.0,0.00020958,2]
[362391948,1748245856930,-1000.0,0.00020958,2]
[362391950,1748245856940,-1000.0,0.00020958,2]
[362391952,1748245856950,-815.07046688,0.00020958,2]
[362391954,1748245856959,-500.0,0.00020973,2]
[362391956,1748245856969,-2530.91540296,0.00021,5]
[362391958,1748245856978,-10000.0,0.00021,5]
[362391960,1748245856988,-10000.0,0.00021,5]
[362391962,1748245856998,-10000.0,0.00021,5]
[362391964,1748245857007,-10000.0,0.00021,5]
[362391966,1748245857016,-10000.0,0.00021,5]
[362391968,1748245857026,-10000.0,0.00021,5]
[362391970,1748245857037,-10000.0,0.00021,5]
[362391972,1748245857047,-10000.0,0.00021,5]
[362391974,1748245857056,-10000.0,0.00021,5]
[362391976,1748245857065,-10000.0,0.00021,5]
[362391978,1748245857075,-10000.0,0.00021,5]
[362391980,1748245857084,-10000.0,0.00021,5]
[362391982,1748245857093,-10000.0,0.00021,5]
[362391984,1748245857103,-10000.0,0.00021,5]
[362391986,1748245857112,-10000.0,0.00021,5]
[362391988,1748245857121,-7153.44912,0.00021,5]
[362391990,1748245857132,-2135.0,0.00021,14]
[362391992,1748245857142,-2000.0,0.00021,14]
[362391994,1748245857151,-2279.44,0.00021,2]
[362391996,1748245857161,-14207.3990566,0.00021,7]
[362391998,1748245857171,-1000.0,0.00021,2]
[362392000,1748245857180,-11328.85266884,0.00021011,2]
[362392002,1748245857190,-1112.61514983,0.00021038,4]
[362392005,1748245857200,-671.21612626,0.00021068,2]
[362392007,1748245857209,-500.0,0.00021068,2]
[362392009,1748245857219,-1000.0,0.00021068,2]
[362392011,1748245857228,-1003.78040032,0.00021068,2]
[362392013,1748245857238,-3000.0,0.00021068,2]
[362392015,1748245857248,-1800.0,0.00021068,2]
[362392017,1748245857258,-1500.0,0.00021068,2]
[362392019,1748245857267,-430.0,0.00021095,2]
[362392021,1748245857276,-518.65591912,0.00021095,2]
[362392023,1748245857286,-430.0,0.00021095,2]
[362392025,1748245857295,-430.0,0.00021095,2]
[362392027,1748245857304,-430.0,0.00021095,2]
[362392029,1748245857314,-430.0,0.00021095,2]
[362392031,1748245857324,-430.0,0.00021095,2]
[362392033,1748245857333,-507.72,0.00021095,2]
[362392035,1748245857343,-430.0,0.00021095,2]
[362392037,1748245857354,-324.40370591,0.00021095,2]
[362392039,1748245857364,-430.0,0.00021095,2]
[362392041,1748245857375,-430.0,0.00021095,2]
[362392043,1748245857385,-522.04,0.00021095,2]
[362392045,1748245857394,-194.53700909,0.00021095,2]
[362392047,1748245857404,-444.29,0.00021095,2]
[362392049,1748245857414,-430.0,0.00021095,2]
[362392060,1748245857505,-228.2,0.00021095,2]
[362392062,1748245857515,-472.4,0.00021095,2]
[362392064,1748245857524,-430.0,0.00021095,2]
[362392066,1748245857534,-430.0,0.00021095,2]
[362392068,1748245857544,-430.0,0.00021095,2]
[362392070,1748245857554,-430.0,0.00021095,2]
[362392072,1748245857564,-430.0,0.00021095,2]
[362392074,1748245857573,-430.0,0.00021095,2]
[362392076,1748245857583,-430.13,0.00021095,2]
[362392078,1748245857592,-699.59,0.00021095,2]
[362392080,1748245857602,-2830.25,0.00021095,2]
[362392082,1748245857612,-430.0,0.00021095,2]
[362392085,1748245857622,-430.0,0.00021095,2]
[362392087,1748245857632,-444.44,0.00021095,2]
[362392089,1748245857642,-430.0,0.00021095,2]
[362392091,1748245857651,-430.0,0.00021095,2]
[362392093,1748245857661,-432.14,0.00021095,2]
[362392095,1748245857671,-430.0,0.00021095,2]
[362392097,1748245857681,-709.96,0.00021095,2]
[362392099,1748245857690,-430.0,0.00021095,2]
[362392101,1748245857700,-430.0,0.00021095,2]
[362392103,1748245857709,-430.0,0.00021095,2]
[362392105,1748245857719,-627.56,0.00021095,2]
[362392107,1748245857729,-1010.74,0.00021095,2]
[362392109,1748245857738,-430.0,0.00021095,2]
[362392111,1748245857748,-430.0,0.00021095,2]
[362392113,1748245857757,-1887.09,0.00021095,2]
[362392115,1748245857767,-1569.9,0.00021095,2]
[362392118,1748245857776,-430.0,0.00021095,2]
[362392120,1748245857787,-430.0,0.00021095,2]
[362392122,1748245857796,-1924.19,0.00021095,2]
[362392124,1748245857806,-3057.21,0.00021095,2]
[362392126,1748245857816,-518.54,0.00021095,2]
[362392128,1748245857829,-588.02,0.00021095,2]
[362392130,1748245857838,-430.0,0.00021095,2]
[362392132,1748245857848,-430.0,0.00021095,2]
[362392134,1748245857858,-468.75,0.00021095,2]
[362392136,1748245857868,-430.0,0.00021095,2]
[362392138,1748245857878,-430.0,0.00021095,2]
[362392140,1748245857888,-355.82025,0.00021095,2]
[362392142,1748245857903,-1257.45,0.00021095,2]
[362392144,1748245857912,-1149.24,0.00021095,2]
[362392146,1748245857922,-375.24555512,0.00021095,2]
[362392148,1748245857931,-500.0,0.00021118,2]
[362392150,1748245857940,-5000.0,0.00021126,2]
[362392152,1748245857950,-600.0,0.0002116,2]
[362392154,1748245857960,-4500.0,0.00021184,2]
[362392156,1748245857969,-502.64645391,0.00021205,2]
[362392159,1748245857979,-505.5176818,0.00021205,2]
[362392161,1748245857990,-961.0,0.00021221,2]
[362392163,1748245858000,-150.0,0.00021221,2]
[362392165,1748245858009,-150.0,0.00021221,2]
[362392167,1748245858020,-508.45936474,0.00021268,2]
[362392169,1748245858031,-500.0,0.00021268,2]
[362392171,1748245858042,-506.44260946,0.00021268,2]
[362392173,1748245858051,-1112.61514983,0.00021314,5]
[362392175,1748245858060,-430.0,0.00021369,2]
[362392177,1748245858070,-251.486605,0.00021369,2]
[362392179,1748245858080,-430.0,0.00021369,2]
[362392181,1748245858089,-243.97937949,0.00021369,2]
[362392183,1748245858099,-430.0,0.00021369,2]
[362392185,1748245858109,-507.72,0.00021369,2]
[362392187,1748245858119,-430.0,0.00021369,2]
[362392189,1748245858128,-430.0,0.00021369,2]
[362392191,1748245858138,-430.0,0.00021369,2]
[362392193,1748245858147,-444.29,0.00021369,2]
[362392195,1748245858157,-430.0,0.00021369,2]
[362392197,1748245858167,-472.4,0.00021369,2]
[362392199,1748245858176,-430.0,0.00021369,2]
[362392201,1748245858186,-430.0,0.00021369,2]
[362392203,1748245858195,-430.0,0.00021369,2]
[362392205,1748245858205,-439.45305935,0.00021369,2]
[362392208,1748245858224,-430.0,0.00021369,2]
[362392211,1748245858245,-430.0,0.00021369,2]
[362392214,1748245858263,-430.13,0.00021369,2]
[362392217,1748245858282,-699.59,0.00021369,2]
[362392220,1748245858302,-2830.25,0.00021369,2]
[362392223,1748245858320,-430.0,0.00021369,2]
[362392226,1748245858338,-444.44,0.00021369,2]
[362392229,1748245858355,-430.0,0.00021369,2]
[362392232,1748245858371,-430.0,0.00021369,2]
[362392235,1748245858390,-432.14,0.00021369,2]
[362392238,1748245858407,-430.0,0.00021369,2]
[362392240,1748245858420,-709.96,0.00021369,2]
[362392243,1748245858437,-430.0,0.00021369,2]
[362392246,1748245858456,-430.0,0.00021369,2]
[362392249,1748245858475,-430.0,0.00021369,2]
[362392252,1748245858494,-627.56,0.00021369,2]
[362392254,1748245858510,-1010.74,0.00021369,2]
[362392257,1748245858522,-430.0,0.00021369,2]
[362392259,1748245858539,-430.0,0.00021369,2]
[362392262,1748245858558,-1887.09,0.00021369,2]
[362392265,1748245858570,-1569.9,0.00021369,2]
[362392267,1748245858585,-430.0,0.00021369,2]
[362392270,1748245858601,-430.0,0.00021369,2]
[362392272,1748245858615,-1924.19,0.00021369,2]
[362392275,1748245858630,-3057.21,0.00021369,2]
[362392278,1748245858645,-518.54,0.00021369,2]
[362392280,1748245858660,-588.02,0.00021369,2]
[362392283,1748245858674,-430.0,0.00021369,2]
[362392285,1748245858691,-430.0,0.00021369,2]
[362392288,1748245858705,-468.75,0.00021369,2]
[362392290,1748245858720,-430.0,0.00021369,2]
[362392293,1748245858734,-430.0,0.00021369,2]
[362392295,1748245858748,-1257.45,0.00021369,2]
[362392298,1748245858763,-1149.24,0.00021369,2]
[362392300,1748245858777,-500.0,0.0002141,2]
[362392303,1748245858791,-500.0,0.0002141,2]
[362392305,1748245858805,-2000.0,0.000215,2]
[362392308,1748245858819,-500.2358698,0.00021521,2]
[362392311,1748245858836,-11328.85266884,0.00021567,2]
[362392313,1748245858851,-1112.61514983,0.0002159,5]
[362392315,1748245858865,-4000.0,0.00021616,2]
[362392318,1748245858879,-2400.0,0.00021616,2]
[362392320,1748245858893,-1127.71609787,0.00021616,2]
[362392323,1748245858908,-430.0,0.00021643,2]
[362392325,1748245858922,-430.0,0.00021643,2]
[362392328,1748245858935,-507.72,0.00021643,2]
[362392330,1748245858949,-430.0,0.00021643,2]
[362392333,1748245858963,-430.0,0.00021643,2]
[362392335,1748245858977,-430.0,0.00021643,2]
[362392338,1748245858993,-444.29,0.00021643,2]
[362392340,1748245859007,-430.0,0.00021643,2]
[362392343,1748245859021,-472.4,0.00021643,2]
[362392345,1748245859035,-430.0,0.00021643,2]
[362392348,1748245859051,-430.0,0.00021643,2]
[362392351,1748245859064,-430.0,0.00021643,2]
[362392353,1748245859079,-293.41,0.00021643,2]
[362392356,1748245859094,-430.13,0.00021643,2]
[362392358,1748245859108,-699.59,0.00021643,2]
[362392361,1748245859122,-2830.25,0.00021643,2]
[362392363,1748245859137,-430.0,0.00021643,2]
[362392366,1748245859151,-444.44,0.00021643,2]
[362392368,1748245859166,-430.0,0.00021643,2]
[362392371,1748245859181,-242.6,0.00021643,2]
[362392374,1748245859196,-432.14,0.00021643,2]
[362392376,1748245859210,-430.0,0.00021643,2]
[362392378,1748245859219,-709.96,0.00021643,2]
[362392380,1748245859228,-430.0,0.00021643,2]
[362392382,1748245859238,-444.6711885,0.00021643,2]
[362392384,1748245859248,-277.9,0.00021643,2]
[362392386,1748245859257,-627.56,0.00021643,2]
[362392388,1748245859267,-1010.74,0.00021643,2]